fUSD/lending_fUSD_20251210
["ID","MTS","AMOUNT","RATE_DAILY","PERIOD"]
[398130633,1765392638039,-500.0,0.00023803,2]
[398130634,1765392638049,-393.57188812,0.00023803,2]
[398130635,1765392638059,-151.0,0.00023803,2]
[398130636,1765392638070,-602.28698621,0.0002384,2]
[398130637,1765392638083,-799.7029447,0.00023998,2]
[398130638,1765392638093,-1196.89,0.00024054,2]
[398130639,1765392638103,-500.0,0.00024103,2]
[398130640,1765392638113,-500.0,0.00024147,2]
[398130641,1765392638123,-1196.89,0.00024328,2]
[398130642,1765392638133,-10851.67167325,0.00024565,2]
[398130643,1765392638142,-1196.89,0.00024602,2]
[398130644,1765392638152,-225.8297721,0.00024665,2]
[398130645,1765392638163,-155.51105436,0.00024697,48]
[398130646,1765392638173,-1579.4460118,0.00024704,2]
[398130647,1765392638183,-1680.0,0.00024816,2]
[398130648,1765392638193,-1196.89,0.00024876,2]
[398130649,1765392638202,-500.0,0.00024927,2]
[398130650,1765392638212,-1680.0,0.00024931,2]
[398130651,1765392638222,-1196.89,0.0002515,2]
[398130652,1765392638231,-500.0,0.00025262,2]
[398130653,1765392638241,-500.0,0.00025262,2]
[398130654,1765392638251,-500.0,0.00025262,2]
[398130655,1765392638262,-591.36,0.00025262,2]
[398130656,1765392638271,-1196.89,0.00025424,2]
[398130657,1765392638282,-1196.89,0.00025698,2]
[398130658,1765392638292,-1196.93017063,0.00025972,2]
[398130659,1765392638302,-10851.67167318,0.00026449,2]
[398130660,1765392638312,-192.6,0.00026542,2]
[398130661,1765392638321,-5800.0,0.00026693,2]
[398130662,1765392638331,-5800.0,0.00026702,2]
[398130663,1765392638341,-5800.0,0.0002671,2]
[398130664,1765392638351,-5800.0,0.00026719,2]
[398130665,1765392638361,-5800.0,0.00026727,2]
[398130666,1765392638371,-5800.0,0.00026736,2]
[398130667,1765392638380,-5800.0,0.00026744,2]
[398130668,1765392638390,-5800.0,0.00026753,2]
[398130669,1765392638400,-5800.0,0.00026761,2]
[398130670,1765392638410,-5800.0,0.0002677,2]
[398130671,1765392638420,-5800.0,0.00026778,2]
[398130672,1765392638429,-150.0,0.000269,14]
[398130673,1765392638439,-720.0,0.00026943,2]
[398130674,1765392638449,-2351.0,0.00027194,2]
[398130675,1765392638460,-1628.38,0.00028323,2]
[398130676,1765392638474,-10851.67167318,0.00028333,2]
[398130677,1765392638496,-239.01433648,0.00028406,2]
[398130678,1765392638517,-900.0,0.00028406,2]
[398130679,1765392638527,-574.12855637,0.00028406,2]
[398130680,1765392638539,-500.0,0.00028406,2]
[398130681,1765392638550,-500.0,0.00028406,2]
[398130682,1765392638559,-311.1,0.00028406,2]
[398130683,1765392638570,-500.0,0.00028406,2]
[398130684,1765392638580,-500.0,0.00028406,2]
[398130685,1765392638590,-500.0,0.00028406,2]
[398130686,1765392638599,-500.0,0.00028406,2]
[398130687,1765392638609,-151.80375574,0.00028406,2]
[398130688,1765392638618,-500.0,0.00028406,2]
[398130689,1765392638628,-500.0,0.00028406,2]
[398130690,1765392638637,-500.0,0.00028406,2]
[398130691,1765392638648,-500.0,0.00028406,2]
[398130692,1765392638658,-500.0,0.00028406,2]
[398130693,1765392638667,-900.0,0.00028954,2]
[398130694,1765392638676,-595.37131296,0.00028954,2]
[398130695,1765392638686,-255.82554585,0.00028954,2]
[398130696,1765392638696,-196.46,0.00028993,2]
[398130698,1765392638706,-900.0,0.00029502,2]
[398130700,1765392638715,-214.9828925,0.00029502,2]
[398130702,1765392638726,-5204.73,0.00029591,2]
[398130704,1765392638737,-1172.67,0.0002962,120]
[398130706,1765392638747,-2902.0,0.00029662,2]
[398130708,1765392638757,-178.55,0.00029734,2]
[398130710,1765392638768,-900.0,0.0003005,2]
[398130713,1765392638778,-10851.67167318,0.00030217,2]
[398130714,1765392638788,-250.0,0.0003043,2]
[398130717,1765392638798,-900.0,0.00030598,2]
[398130719,1765392638810,-999.0,0.00030722,3]
[398130721,1765392638820,-1000.0,0.0003082,2]
[398130723,1765392638830,-178.55,0.00030849,2]
[398130725,1765392638839,-166.66,0.00030932,2]
[398130727,1765392638849,-938.22,0.00030963,2]
[398130729,1765392638858,-11755.93,0.00030973,2]
[398130731,1765392638869,-500.0,0.00030994,2]
[398130733,1765392638879,-1852.42,0.00030995,2]
[398130735,1765392638889,-900.0,0.00031146,2]
[398130737,1765392638899,-510.9486006,0.00031147,60]
[398130739,1765392638909,-500.0,0.00031147,60]
[398130741,1765392638919,-500.0,0.00031147,60]
[398130743,1765392638929,-322.56152199,0.00031147,60]
[398130745,1765392638939,-863.28,0.00031203,2]
[398130747,1765392638949,-245.73,0.00031266,2]
[398130749,1765392638960,-1301.52,0.00031426,2]
[398130751,1765392638970,-1000.0,0.00031488,2]
[398130753,1765392638980,-188.98,0.00031507,120]
[398130755,1765392638991,-161.0,0.00031644,2]
[398130757,1765392639002,-900.0,0.00031694,2]
[398130759,1765392639012,-178.55,0.00031964,2]
[398130761,1765392639021,-151.77053699,0.000321,2]
[398130763,1765392639031,-500.0,0.000321,2]
[398130765,1765392639041,-500.0,0.000321,2]
[398130767,1765392639051,-500.0,0.000321,2]
[398130769,1765392639060,-500.0,0.000321,2]
[398130771,1765392639070,-500.0,0.000321,2]
[398130774,1765392639084,-500.0,0.000321,2]
[398130776,1765392639097,-500.0,0.000321,2]
[398130778,1765392639107,-500.0,0.000321,2]
[398130780,1765392639116,-500.0,0.000321,2]
[398130782,1765392639127,-500.0,0.000321,2]
[398130784,1765392639137,-500.0,0.000321,2]
[398130786,1765392639147,-300.0,0.000321,2]
[398130788,1765392639158,-500.0,0.000321,2]
[398130790,1765392639168,-500.0,0.000321,2]
[398130792,1765392639178,-500.0,0.000321,2]
[398130794,1765392639188,-500.0,0.000321,2]
[398130796,1765392639198,-500.0,0.000321,2]
[398130798,1765392639208,-500.0,0.000321,2]
[398130800,1765392639218,-500.0,0.000321,2]
[398130802,1765392639228,-500.0,0.000321,2]
[398130804,1765392639238,-500.0,0.000321,2]
[398130806,1765392639249,-500.0,0.000321,2]
[398130808,1765392639260,-500.0,0.000321,2]
[398130810,1765392639270,-500.0,0.000321,2]
[398130811,1765392639279,-500.0,0.000321,2]
[398130813,1765392639292,-500.0,0.000321,2]
[398130816,1765392639303,-500.0,0.000321,2]
[398130818,1765392639313,-264.10513448,0.000321,2]
[398130820,1765392639323,-500.0,0.000321,2]
[398130822,1765392639332,-500.0,0.000321,2]
[398130824,1765392639342,-500.0,0.000321,2]
[398130826,1765392639352,-500.0,0.000321,2]
[398130828,1765392639362,-500.0,0.000321,2]
[398130830,1765392639372,-500.0,0.000321,2]
[398130832,1765392639383,-500.0,0.000321,2]
[398130834,1765392639394,-500.0,0.000321,2]
[398130836,1765392639404,-500.0,0.000321,2]
[398130838,1765392639415,-500.0,0.000321,2]
[398130840,1765392639425,-500.0,0.000321,2]
[398130842,1765392639435,-500.0,0.000321,2]
[398130844,1765392639446,-500.0,0.000321,2]
[398130846,1765392639456,-500.0,0.000321,2]
[398130848,1765392639466,-500.0,0.000321,2]
[398130850,1765392639476,-171.76776443,0.000321,2]
[398130883,1765392639763,-328.23223557,0.000321,2]
[398130885,1765392639774,-500.0,0.000321,2]
[398130887,1765392639786,-500.0,0.000321,2]
[398130888,1765392639796,-500.0,0.000321,2]
[398130890,1765392639807,-500.0,0.000321,2]
[398130892,1765392639818,-500.0,0.000321,2]
[398130893,1765392639828,-500.0,0.000321,2]
[398130894,1765392639839,-500.0,0.000321,2]
[398130895,1765392639848,-500.0,0.000321,2]
[398130896,1765392639858,-500.0,0.000321,2]
[398130897,1765392639869,-500.0,0.000321,2]
[398130898,1765392639879,-500.0,0.000321,2]
[398130899,1765392639889,-500.0,0.000321,2]
[398130900,1765392639899,-500.0,0.000321,2]
[398130901,1765392639909,-500.0,0.000321,2]
[398130902,1765392639920,-500.0,0.000321,2]
[398130903,1765392639930,-500.0,0.000321,2]
[398130904,1765392639939,-500.0,0.000321,2]
[398130905,1765392639949,-500.0,0.000321,2]
[398130906,1765392639959,-500.0,0.000321,2]
[398130907,1765392639969,-10851.67167318,0.00032101,2]
[398130908,1765392639978,-905.35222855,0.00032281,7]
[398130909,1765392639988,-211.08,0.000329,30]
[398130910,1765392639998,-361.36,0.00033037,2]
[398130911,1765392640008,-178.55,0.00033079,2]
[398130912,1765392640018,-300.0,0.00033252,2]
[398130913,1765392640027,-280.54,0.00033311,2]
[398130914,1765392640037,-1172.67,0.00033322,120]
[398130915,1765392640047,-20274.93599447,0.00033489,10]
[398130916,1765392640057,-417.62628858,0.00033885,2]
[398130917,1765392640075,-25741.85673118,0.00033885,2]
[398130918,1765392640090,-5971.3289788,0.00033986,2]
[398130919,1765392640102,-639.8168967,0.00033986,2]
[398130920,1765392640114,-4240.52579768,0.00033986,2]
[398130921,1765392640125,-445.71843032,0.00034129,37]
[398130922,1765392640141,-742.98999982,0.00034129,37]
[398130923,1765392640153,-706.02056986,0.00034129,37]
[398130924,1765392640167,-173.632,0.00034129,37]
[398130925,1765392640179,-817.15684577,0.00034143,2]
[398130934,1765392642323,-1.7e-07,0.00034143,2]
[398130935,1765392642340,-232.84315406,0.00034143,2]
[398130936,1765392642350,-1051.0,0.00034186,2]
[398130937,1765392642359,-178.55,0.00034194,2]
[398130938,1765392642370,-290.0,0.00034316,2]
[398130939,1765392642379,-47.64221354,0.00034408,2]
[398130940,1765392642397,-297.88778646,0.00034408,2]
[398130941,1765392642407,-290.0,0.00034415,2]
[398130942,1765392642418,-111.81522616,0.00034673,2]
[398130944,1765392642430,-888.18477384,0.00034673,2]
[398130945,1765392642440,-345.53,0.00034682,2]
[398130946,1765392642450,-290.0,0.00034694,2]
[398130947,1765392642460,-3115.38522616,0.00034734,2]
[398130948,1765392642473,-342.93822665,0.00034734,2]
[398130950,1765392642484,-3713.11082506,0.00034734,2]
[398130951,1765392642499,-327.71800197,0.00022757,2]
[398130952,1765392642509,-1180.19631958,0.00034734,2]
[398130953,1765392642521,-1839.138,0.00034734,2]
[398130955,1765392642534,-272.15710776,0.00034734,2]
[398130956,1765392642550,-2200.00009843,0.00034734,2]
[398130957,1765392642562,-963.28655487,0.00034734,2]
[398130958,1765392642574,-12533.27066116,0.00034734,2]
[398130959,1765392642584,-290.0,0.00034779,7]
[398130960,1765392642593,-1050.0,0.00034816,2]
[398130961,1765392642603,-290.0,0.00034942,7]
[398130962,1765392642614,-236.84,0.00034956,2]
[398130963,1765392642624,-290.0,0.00035009,2]
[398130964,1765392642634,-199.17,0.00035167,2]
[398130965,1765392642644,-1050.0,0.00035388,7]
[398130966,1765392642654,-1050.0,0.00035471,120]
[398130967,1765392642664,-1051.0,0.00035508,120]
[398130968,1765392642675,-26159.48301967,0.00035582,2]
[398130969,1765392642685,-290.0,0.0003563,7]
[398130970,1765392642695,-290.0,0.00035642,2]
[398130971,1765392642705,-290.0,0.00035712,2]
[398130972,1765392642715,-290.0,0.00035803,2]
[398130973,1765392642726,-938.22,0.0003586,2]
[398130975,1765392642737,-10851.67167318,0.0003587,2]
[398130977,1765392642747,-326.46802951,0.00035989,2]
[398130978,1765392642757,-290.0,0.00036024,2]
[398130980,1765392642767,-290.0,0.00036134,2]
[398130981,1765392642776,-1051.0,0.000363,7]
[398130983,1765392642787,-1050.0,0.00036337,2]
[398130985,1765392642796,-26159.48301967,0.00036431,2]
[398130986,1765392642806,-290.0,0.00036586,2]
[398130987,1765392642817,-290.0,0.0003676,2]
[398130988,1765392642826,-326.46802951,0.00036911,2]
[398130990,1765392642836,-1260.0,0.00036974,2]
[398130992,1765392642846,-614.0,0.00036974,2]
[398130994,1765392642856,-346.0,0.00036974,2]
[398130996,1765392642866,-290.0,0.00037024,120]
[398130998,1765392642875,-1172.67,0.00037025,120]
[398131000,1765392643016,-1050.0,0.00037103,2]
[398131001,1765392643026,-163.72,0.00037155,2]
[398131002,1765392643037,-150.0,0.00037356,7]
[398131003,1765392643047,-150.0,0.00037356,7]
[398131004,1765392643058,-150.0,0.00037356,7]
[398131005,1765392643068,-150.0,0.00037356,7]
[398131006,1765392643077,-150.0,0.00037356,7]
[398131007,1765392643091,-150.0,0.00037356,7]
[398131008,1765392643102,-150.0,0.00037356,7]
[398131009,1765392643111,-150.0,0.00037356,7]
[398131010,1765392643122,-150.0,0.00037356,7]
[398131011,1765392643139,-150.0,0.00037356,7]
[398131012,1765392643159,-150.0,0.00037356,7]
[398131013,1765392643169,-150.0,0.00037356,7]
[398131014,1765392643180,-150.0,0.00037356,7]
[398131015,1765392643189,-150.0,0.00037356,7]
[398131016,1765392643199,-150.0,0.00037356,7]
[398131017,1765392643208,-290.0,0.00037394,2]
[398131018,1765392643218,-150.0,0.00037418,7]
[398131019,1765392643227,-150.0,0.00037432,7]
[398131020,1765392643236,-150.0,0.00037443,7]
[398131021,1765392643246,-150.0,0.0003746,7]
[398131022,1765392643256,-150.0,0.00037475,7]
[398131023,1765392643266,-150.0,0.0003748,7]
[398131024,1765392643276,-150.0,0.00037495,7]
[398131025,1765392643286,-150.0,0.00037507,7]
[398131027,1765392643296,-150.0,0.0003751,7]
[398131029,1765392643305,-150.0,0.00037529,7]
[398131030,1765392643315,-164.16,0.00037532,2]
[398131031,1765392643324,-150.0,0.00037542,7]
[398131032,1765392643335,-150.0,0.00037564,7]
[398131033,1765392643344,-150.0,0.00037583,7]
[398131034,1765392643355,-150.0,0.00037587,7]
[398131035,1765392643365,-150.0,0.00037593,7]
[398131036,1765392643386,-150.0,0.00037604,7]
[398131037,1765392643395,-150.0,0.00037616,7]
[398131038,1765392643406,-150.0,0.00037633,7]
[398131039,1765392643415,-150.0,0.00037658,7]
[398131040,1765392643425,-150.0,0.00037664,7]
[398131041,1765392643435,-150.0,0.00037666,7]
[398131042,1765392643445,-150.0,0.00037667,7]
[398131043,1765392643455,-150.0,0.00037702,7]
[398131044,1765392643465,-150.0,0.00037702,7]
[398131045,1765392643475,-150.0,0.00037702,7]
[398131046,1765392643486,-150.0,0.00037712,7]
[398131047,1765392643495,-150.0,0.00037728,7]
[398131048,1765392643505,-150.0,0.00037733,7]
[398131049,1765392643515,-150.0,0.00037733,7]
[398131050,1765392643525,-10851.67167318,0.00037754,2]
[398131051,1765392643535,-150.0,0.00037771,7]
[398131052,1765392643545,-150.0,0.00037771,7]
[398131053,1765392643555,-150.0,0.00037789,7]
[398131054,1765392643565,-150.0,0.0003779,7]
[398131055,1765392643574,-150.0,0.00037809,7]
[398131056,1765392643585,-150.0,0.00037817,7]
[398131057,1765392643595,-150.0,0.00037817,7]
[398131058,1765392643604,-150.0,0.00037831,7]
[398131059,1765392643613,-326.46802951,0.00037833,2]
[398131060,1765392643623,-150.0,0.00037852,7]
[398131061,1765392643633,-150.0,0.00037875,7]
[398131062,1765392643643,-150.0,0.00037875,7]
[398131063,1765392643652,-150.0,0.00037884,7]
[398131064,1765392643662,-150.0,0.0003791,7]
[398131065,1765392643673,-150.0,0.00037914,7]
[398131066,1765392643683,-150.0,0.00037949,7]
[398131067,1765392643693,-150.0,0.0003796,7]
[398131068,1765392643703,-150.0,0.00037961,7]
[398131069,1765392643713,-150.0,0.00037971,7]
[398131070,1765392643722,-150.0,0.00037976,7]
[398131071,1765392643732,-150.0,0.00037979,7]
[398131072,1765392643742,-150.0,0.00038035,7]
[398131073,1765392643752,-150.0,0.00038038,7]
[398131074,1765392643762,-150.0,0.00038048,7]
[398131075,1765392643772,-150.0,0.00038048,7]
[398131076,1765392643781,-150.0,0.00038048,7]
[398131077,1765392643790,-150.0,0.00038048,7]
[398131078,1765392643800,-150.0,0.00038048,7]
[398131079,1765392643810,-150.0,0.00038048,7]
[398131080,1765392643819,-150.0,0.00038068,7]
[398131081,1765392643828,-150.0,0.00038083,7]
[398131082,1765392643837,-150.0,0.000381,7]
[398131083,1765392643847,-150.0,0.00038111,7]
[398131084,1765392643857,-150.0,0.00038111,7]
[398131085,1765392643867,-150.0,0.00038125,7]
[398131086,1765392643877,-150.0,0.00038134,7]
[398131087,1765392643887,-150.0,0.00038162,7]
[398131088,1765392643896,-150.0,0.00038186,7]
[398131089,1765392643907,-150.0,0.00038186,7]
[398131090,1765392643916,-150.0,0.00038186,7]
[398131091,1765392643926,-150.0,0.00038186,7]
[398131092,1765392643937,-150.0,0.00038221,7]
[398131093,1765392643947,-150.0,0.00038223,7]
[398131094,1765392643957,-163.72,0.00038241,2]
[398131095,1765392643967,-150.0,0.00038262,7]
[398131096,1765392643976,-150.0,0.00038279,7]
[398131097,1765392643986,-150.0,0.00038279,7]
[398131098,1765392643995,-150.0,0.00038285,7]
[398131099,1765392644005,-150.0,0.0003829,7]
[398131100,1765392644015,-150.0,0.00038305,7]
[398131101,1765392644024,-150.0,0.00038307,7]
[398131102,1765392644035,-150.0,0.00038325,7]
[398131103,1765392644046,-150.0,0.00038337,7]
[398131104,1765392644055,-150.0,0.00038347,7]
[398131105,1765392644065,-150.0,0.00038394,7]
[398131106,1765392644075,-150.0,0.00038394,7]
[398131107,1765392644089,-150.0,0.00038394,7]
[398131108,1765392644099,-150.0,0.00038394,7]
[398131109,1765392644108,-150.0,0.00038409,7]
[398131110,1765392644119,-150.0,0.00038413,7]
[398131111,1765392644129,-150.0,0.00038423,7]
[398131112,1765392644139,-150.0,0.00038432,7]
[398131113,1765392644149,-150.0,0.00038463,7]
[398131114,1765392644160,-150.0,0.00038471,7]
[398131115,1765392644169,-150.0,0.0003848,7]
[398131116,1765392644179,-150.0,0.00038488,7]
[398131117,1765392644188,-150.0,0.00038488,7]
[398131118,1765392644198,-150.0,0.00038498,7]
[398131119,1765392644207,-150.0,0.00038509,7]
[398131120,1765392644216,-1000.0,0.00038526,2]
[398131121,1765392644226,-150.0,0.00038533,7]
[398131122,1765392644235,-150.0,0.00038542,7]
[398131123,1765392644244,-150.0,0.00038564,7]
[398131124,1765392644253,-150.0,0.00038567,7]
[398131125,1765392644263,-150.0,0.00038586,7]
[398131126,1765392644273,-150.0,0.00038595,7]
[398131127,1765392644282,-150.0,0.00038601,7]
[398131128,1765392644291,-150.0,0.00038601,7]
[398131129,1765392644301,-150.0,0.00038639,7]
[398131130,1765392644311,-150.0,0.00038653,7]
[398131131,1765392644320,-150.0,0.00038657,7]
[398131132,1765392644330,-150.0,0.00038661,7]
[398131133,1765392644340,-1679.19272941,0.0003869,5]
[398131134,1765392644350,-150.0,0.00038705,7]
[398131135,1765392644360,-150.0,0.00038715,7]
[398131136,1765392644369,-150.0,0.00038719,7]
[398131137,1765392644379,-150.0,0.0003874,7]
[398131138,1765392644388,-150.0,0.0003874,7]
[398131139,1765392644398,-150.0,0.0003874,7]
[398131140,1765392644407,-150.0,0.0003874,7]
[398131141,1765392644417,-150.0,0.0003874,7]
[398131142,1765392644427,-150.0,0.0003874,7]
[398131143,1765392644438,-150.0,0.0003874,7]
[398131144,1765392644448,-150.0,0.0003874,7]
[398131145,1765392644458,-326.46802951,0.00038756,2]
[398131146,1765392644470,-150.0,0.00038779,7]
[398131147,1765392644485,-150.0,0.00038781,7]
[398131148,1765392644495,-150.0,0.0003879,7]
[398131149,1765392644506,-150.0,0.00038809,7]
[398131150,1765392644516,-232.37,0.00038823,14]
[398131151,1765392644525,-150.0,0.00038826,7]
[398131152,1765392644535,-150.0,0.00038843,7]
[398131153,1765392644545,-150.0,0.00038866,7]
[398131154,1765392644556,-150.0,0.00038866,7]
[398131155,1765392644566,-150.0,0.00038878,7]
[398131156,1765392644575,-150.0,0.00038893,7]
[398131157,1765392644586,-150.0,0.00038898,7]
[398131158,1765392644595,-150.0,0.00038905,7]
[398131159,1765392644606,-150.0,0.00038913,7]
[398131160,1765392644616,-150.0,0.00038913,7]
[398131161,1765392644625,-150.0,0.00038941,7]
[398131162,1765392644635,-150.0,0.00038967,7]
[398131163,1765392644646,-150.0,0.0003897,7]
[398131164,1765392644656,-150.0,0.00038999,7]
[398131165,1765392644666,-150.0,0.00039016,7]
[398131166,1765392644675,-150.0,0.00039016,7]
[398131167,1765392644685,-150.0,0.00039016,7]
[398131168,1765392644701,-150.0,0.00039016,7]
[398131169,1765392644711,-150.0,0.00039029,7]
[398131170,1765392644722,-150.0,0.00039047,7]
[398131171,1765392644732,-150.0,0.00039086,7]
[398131172,1765392644742,-150.0,0.00039086,7]
[398131173,1765392644753,-150.0,0.00039086,7]
[398131174,1765392644763,-150.0,0.00039091,7]
[398131175,1765392644773,-150.0,0.00039092,7]
[398131176,1765392644783,-150.0,0.0003912,7]
[398131177,1765392644792,-150.0,0.00039135,7]
[398131178,1765392644803,-150.0,0.00039153,7]
[398131179,1765392644812,-150.0,0.00039155,7]
[398131180,1765392644825,-150.0,0.00039167,7]
[398131181,1765392644835,-150.0,0.00039172,7]
[398131182,1765392644845,-4585.72370564,0.00039191,4]
[398131183,1765392644860,-150.0,0.00039201,7]
[398131184,1765392644870,-150.0,0.00039201,7]
[398131185,1765392644881,-150.0,0.00039215,7]
[398131186,1765392644891,-150.0,0.00039224,7]
[398131187,1765392644902,-150.0,0.00039243,7]
[398131188,1765392644913,-150.0,0.00039243,7]
[398131189,1765392644923,-150.0,0.00039254,7]
[398131190,1765392644934,-150.0,0.00039259,7]
[398131191,1765392644944,-150.0,0.00039277,7]
[398131192,1765392644955,-150.0,0.00039293,7]
[398131193,1765392644966,-150.0,0.00039318,7]
[398131194,1765392644976,-150.0,0.00039328,7]
[398131195,1765392644986,-150.0,0.00039339,7]
[398131196,1765392644996,-150.0,0.00039345,7]
[398131197,1765392645006,-150.0,0.00039355,7]
[398131198,1765392645015,-150.0,0.00039372,7]
[398131199,1765392645025,-188.98,0.00039384,120]
[398131200,1765392645035,-150.0,0.00039394,7]
[398131201,1765392645046,-150.0,0.00039401,7]
[398131202,1765392645056,-150.0,0.00039432,7]
[398131203,1765392645065,-150.0,0.00039432,7]
[398131204,1765392645075,-150.0,0.00039432,7]
[398131205,1765392645089,-150.0,0.00039432,7]
[398131206,1765392645098,-150.0,0.00039432,7]
[398131207,1765392645109,-150.0,0.00039432,7]
[398131208,1765392645119,-150.0,0.00039432,7]
[398131209,1765392645130,-150.0,0.00039432,7]
[398131210,1765392645140,-150.0,0.00039462,7]
[398131211,1765392645150,-150.0,0.00039469,7]
[398131212,1765392645159,-150.0,0.00039491,7]
[398131213,1765392645170,-261.95,0.00039495,2]
[398131214,1765392645180,-150.0,0.00039508,7]
[398131215,1765392645191,-150.0,0.00039518,7]
[398131216,1765392645201,-150.0,0.00039524,7]
[398131217,1765392645210,-150.0,0.00039535,7]
[398131218,1765392645225,-150.0,0.00039545,7]
[398131219,1765392645234,-150.0,0.0003957,7]
[398131220,1765392645245,-150.0,0.00039586,7]
[398131221,1765392645255,-150.0,0.00039604,7]
[398131222,1765392645265,-150.0,0.00039609,7]
[398131223,1765392645275,-150.0,0.0003962,7]
[398131224,1765392645286,-150.0,0.0003962,7]
[398131225,1765392645295,-938.22,0.00039628,2]
[398131226,1765392645305,-10851.67167318,0.00039638,2]
[398131227,1765392645315,-150.0,0.00039639,7]
[398131228,1765392645324,-150.0,0.00039648,7]
[398131229,1765392645335,-150.0,0.00039662,7]
[398131230,1765392645344,-150.0,0.00039662,7]
[398131231,1765392645355,-326.46802951,0.00039678,2]
[398131232,1765392645364,-150.0,0.00039691,7]
[398131233,1765392645374,-150.0,0.00039696,7]
[398131234,1765392645383,-150.0,0.00039708,7]
[398131235,1765392645394,-150.0,0.0003971,7]
[398131236,1765392645403,-150.0,0.00039728,7]
[398131237,1765392645413,-150.0,0.00039743,7]
[398131238,1765392645425,-150.0,0.00039771,7]
[398131239,1765392645435,-150.0,0.00039772,7]
[398131240,1765392645444,-150.0,0.00039777,7]
[398131242,1765392645454,-150.0,0.00039777,7]
[398131243,1765392645464,-150.0,0.00039777,7]
[398131244,1765392645473,-150.0,0.00039816,7]
[398131245,1765392645483,-150.0,0.00039834,7]
[398131246,1765392645493,-4585.72370564,0.00039837,4]
[398131247,1765392645502,-150.0,0.00039847,7]
[398131248,1765392645512,-150.0,0.00039847,7]
[398131249,1765392645521,-150.0,0.00039847,7]
[398131250,1765392645530,-150.0,0.00039847,7]
[398131251,1765392645540,-150.0,0.00039864,7]
[398131252,1765392645550,-150.0,0.00039893,7]
[398131253,1765392645560,-150.0,0.00039896,7]
[398131254,1765392645570,-150.0,0.00039922,7]
[398131255,1765392645579,-150.0,0.0003995,7]
[398131256,1765392645589,-150.0,0.0003995,7]
[398131257,1765392645599,-150.0,0.00039958,7]
[398131258,1765392645609,-150.0,0.00039965,7]
[398131259,1765392645622,-150.0,0.0003997,7]
[398131260,1765392645631,-150.0,0.00039985,7]
[398131261,1765392645642,-13757.1711169,0.00039989,4]
[398131262,1765392645652,-1628.38,0.00039989,2]
[398131263,1765392645662,-150.0,0.00039998,7]
[398131264,1765392645672,-150.0,0.00039998,7]
[398131265,1765392645681,-215.38014373,0.0004,7]
[398131266,1765392645690,-150.0,0.0004002,7]
[398131267,1765392645700,-150.0,0.00040037,7]
[398131268,1765392645710,-250.0,0.0004005,7]
[398131269,1765392645720,-250.0,0.0004005,7]
[398131270,1765392645730,-250.0,0.0004005,7]
[398131271,1765392645740,-250.0,0.0004005,7]